[Event "Titled Tuesday Blitz April 12 Early 2022"]
[White "Przybylski, Wojciech"]
[Black "Kalavannan, Koby"]
[WhiteFideId "1117599"]
[BlackFideId "425753"]
[WhiteElo "2133"]
[BlackElo "1927"]
[Result "0-1"]
[Round "11"]
[TimeControl "180+1"]
[Date "2022.04.13"]
[WhiteClock "0:00:02"]
[BlackClock "0:00:52"]

1. d4 {[%clk 0:03:00]}  Nf6 {[%clk 0:02:59]} 2. Bg5 {[%clk 0:02:58]}  Ne4 {[%clk 0:02:59]} 3. Bf4 {[%clk 0:02:58]}  d5 {[%clk 0:02:56]} 4. f3 {[%clk 0:02:56]}  Nf6 {[%clk 0:02:56]} 5. c4 {[%clk 0:02:52]}  c5 {[%clk 0:02:51]} 6. e3 {[%clk 0:02:50]}  Nc6 {[%clk 0:02:51]} 7. Nc3 {[%clk 0:02:47]}  cxd4 {[%clk 0:02:50]} 8. exd4 {[%clk 0:02:46]}  e6 {[%clk 0:02:48]} 9. c5 {[%clk 0:02:44]}  e5 {[%clk 0:02:39]} 10. dxe5 {[%clk 0:02:42]}  Nh5 {[%clk 0:02:39]} 11. Bg3 {[%clk 0:02:23]}  Nxg3 {[%clk 0:02:33]} 12. hxg3 {[%clk 0:02:24]}  Be6 {[%clk 0:02:18]} 13. b4 {[%clk 0:02:02]}  Qg5 {[%clk 0:02:13]} 14. Nge2 {[%clk 0:01:40]}  d4 {[%clk 0:02:11]} 15. Ne4 {[%clk 0:01:36]}  Qxe5 {[%clk 0:02:10]} 16. b5 {[%clk 0:01:35]}  Nb4 {[%clk 0:02:04]} 17. c6 {[%clk 0:01:13]}  d3 {[%clk 0:01:57]} 18. cxb7 {[%clk 0:01:08]}  Rd8 {[%clk 0:01:52]} 19. Rc1 {[%clk 0:00:17]}  dxe2 {[%clk 0:01:40]} 20. Qa4 {[%clk 0:00:15]}  Nd3+ {[%clk 0:01:36]} 21. Kxe2 {[%clk 0:00:13]}  Nxc1+ {[%clk 0:01:36]} 22. Kf2 {[%clk 0:00:12]}  Bc5+ {[%clk 0:01:30]} 23. Ke1 {[%clk 0:00:10]}  O-O {[%clk 0:01:26]} 24. Bc4 {[%clk 0:00:09]}  f5 {[%clk 0:01:12]} 25. Bxe6+ {[%clk 0:00:03]}  Qxe6 {[%clk 0:01:13]} 26. Qc2 {[%clk 0:00:02]}  Nd3+ {[%clk 0:01:08]} 27. Ke2 {[%clk 0:00:02]}  fxe4 {[%clk 0:01:09]} 28. Rd1 {[%clk 0:00:01]}  exf3+ {[%clk 0:01:08]} 29. Kf1 {[%clk 0:00:02]}  fxg2+ {[%clk 0:01:07]} 30. Kxg2 {[%clk 0:00:03]}  Qe4+ {[%clk 0:01:06]} 31. Kh3 {[%clk 0:00:02]}  Nf4+ {[%clk 0:01:05]} 32. Kg4 {[%clk 0:00:02]}  Qxc2 {[%clk 0:01:05]} 33. Rxd8 {[%clk 0:00:02]}  Qf5+ {[%clk 0:01:04]} 34. Kf3 {[%clk 0:00:01]}  Nd5+ {[%clk 0:01:02]} 35. Kg2 {[%clk 0:00:01]}  Ne3+ {[%clk 0:01:02]} 36. Kh2 {[%clk 0:00:02]}  Qf2+ {[%clk 0:01:00]} 37. Kh3 {[%clk 0:00:02]}  Qg2+ {[%clk 0:01:00]} 38. Kh4 {[%clk 0:00:02]}  Nf5+ {[%clk 0:00:55]} 39. Kg5 {[%clk 0:00:02]}  Qxg3+ {[%clk 0:00:53]} 40. Kh5 {[%clk 0:00:02]}  g6# {[%clk 0:00:52]} 0-1


[Site "https://www.chess.com"]

[Event "Titled Tuesday Blitz April 12 Early 2022"]
[White "Rohith Krishna S"]
[Black "Stribuk, Artiom"]
[WhiteFideId "46617051"]
[BlackFideId "13515659"]
[WhiteElo "2117"]
[BlackElo "2259"]
[Result "1/2-1/2"]
[Round "11"]
[TimeControl "180+1"]
[Date "2022.04.12"]
[WhiteClock "0:02:16"]
[BlackClock "0:00:53"]

1. d4 {[%clk 0:03:00]}  Nf6 {[%clk 0:02:59]} 2. c4 {[%clk 0:03:00]}  g6 {[%clk 0:03:00]} 3. Nc3 {[%clk 0:03:01]}  d5 {[%clk 0:03:00]} 4. cxd5 {[%clk 0:03:00]}  Nxd5 {[%clk 0:03:01]} 5. Nf3 {[%clk 0:02:59]}  Bg7 {[%clk 0:03:01]} 6. Bd2 {[%clk 0:02:56]}  O-O {[%clk 0:02:59]} 7. Rc1 {[%clk 0:02:53]}  e6 {[%clk 0:02:48]} 8. e3 {[%clk 0:02:50]}  b6 {[%clk 0:02:46]} 9. Nxd5 {[%clk 0:02:48]}  exd5 {[%clk 0:02:47]} 10. Bd3 {[%clk 0:02:40]}  Bb7 {[%clk 0:02:46]} 11. O-O {[%clk 0:02:40]}  Nd7 {[%clk 0:02:46]} 12. b4 {[%clk 0:02:40]}  c6 {[%clk 0:02:29]} 13. a4 {[%clk 0:02:38]}  a6 {[%clk 0:02:12]} 14. Qb3 {[%clk 0:02:31]}  Re8 {[%clk 0:02:09]} 15. Rfe1 {[%clk 0:02:30]}  Rc8 {[%clk 0:01:57]} 16. e4 {[%clk 0:02:25]}  dxe4 {[%clk 0:01:55]} 17. Bxe4 {[%clk 0:02:26]}  Nf6 {[%clk 0:01:52]} 18. Ne5 {[%clk 0:02:18]}  Rxe5 {[%clk 0:01:25]} 19. dxe5 {[%clk 0:02:19]}  Nxe4 {[%clk 0:01:26]} 20. Rxe4 {[%clk 0:02:15]}  Qxd2 {[%clk 0:01:24]} 21. Rd1 {[%clk 0:02:15]}  Qg5 {[%clk 0:01:14]} 22. Rd7 {[%clk 0:02:15]}  Qc1+ {[%clk 0:01:09]} 23. Rd1 {[%clk 0:02:16]}  Qg5 {[%clk 0:01:09]} 24. Rd7 {[%clk 0:02:16]}  Qc1+ {[%clk 0:00:53]} 25. Rd1 {[%clk 0:02:16]}  Qg5 {[%clk 0:00:53]} 1/2-1/2


[Site "https://www.chess.com"]

[Event "Titled Tuesday Blitz April 12 Early 2022"]
[White "Rustemov, Alexander"]
[Black "Zavgorodniy, Sergiy"]
[WhiteFideId "4119002"]
[BlackFideId "14110148"]
[WhiteElo "2799"]
[BlackElo "2420"]
[Result "1-0"]
[Round "11"]
[TimeControl "180+1"]
[Date "2022.04.12"]
[WhiteClock "0:03:00"]
[BlackClock "0:02:51"]

1. d4 {[%clk 0:03:00]}  Nf6 {[%clk 0:02:55]} 2. c4 {[%clk 0:03:00]}  e6 {[%clk 0:02:55]} 3. Nf3 {[%clk 0:03:01]}  Bb4+ {[%clk 0:02:55]} 4. Bd2 {[%clk 0:03:01]}  Qe7 {[%clk 0:02:55]} 5. g3 {[%clk 0:02:59]}  Nc6 {[%clk 0:02:55]} 6. Nc3 {[%clk 0:02:59]}  Bxc3 {[%clk 0:02:55]} 7. Bxc3 {[%clk 0:03:00]}  Ne4 {[%clk 0:02:53]} 8. Qc2 {[%clk 0:03:00]}  Nxc3 {[%clk 0:02:53]} 9. Qxc3 {[%clk 0:03:01]}  d6 {[%clk 0:02:53]} 10. d5 {[%clk 0:03:01]}  Nb8 {[%clk 0:02:51]} 11. Qxg7 {[%clk 0:03:00]} 1-0


[Site "https://www.chess.com"]

[Event "Titled Tuesday Blitz April 12 Early 2022"]
[White "Samaganova, Aleksandra"]
[Black "Ianov, Viktor"]
[WhiteFideId "13800221"]
[BlackFideId "14102730"]
[WhiteElo "1859"]
[BlackElo "2161"]
[Result "0-1"]
[Round "11"]
[TimeControl "180+1"]
[Date "2022.04.13"]
[WhiteClock "0:00:02"]
[BlackClock "0:00:40"]

1. c4 {[%clk 0:03:00]}  d6 {[%clk 0:02:59]} 2. Nc3 {[%clk 0:03:00]}  g6 {[%clk 0:02:59]} 3. g3 {[%clk 0:03:00]}  Bg7 {[%clk 0:02:59]} 4. Bg2 {[%clk 0:03:00]}  Nf6 {[%clk 0:03:00]} 5. e3 {[%clk 0:02:58]}  O-O {[%clk 0:02:59]} 6. Nge2 {[%clk 0:02:58]}  c5 {[%clk 0:02:59]} 7. O-O {[%clk 0:02:57]}  Nc6 {[%clk 0:02:59]} 8. d4 {[%clk 0:02:53]}  Bg4 {[%clk 0:02:58]} 9. h3 {[%clk 0:02:53]}  Bd7 {[%clk 0:02:58]} 10. a3 {[%clk 0:02:51]}  a6 {[%clk 0:02:58]} 11. Rb1 {[%clk 0:02:51]}  Rb8 {[%clk 0:02:58]} 12. b4 {[%clk 0:02:48]}  cxd4 {[%clk 0:02:52]} 13. Nxd4 {[%clk 0:02:42]}  Ne5 {[%clk 0:02:49]} 14. c5 {[%clk 0:02:26]}  Qc8 {[%clk 0:02:45]} 15. Kh2 {[%clk 0:02:01]}  dxc5 {[%clk 0:02:43]} 16. bxc5 {[%clk 0:01:47]}  Qxc5 {[%clk 0:02:40]} 17. Na4 {[%clk 0:01:39]}  Qc7 {[%clk 0:02:24]} 18. Nb6 {[%clk 0:01:29]}  Rfd8 {[%clk 0:02:23]} 19. Qb3 {[%clk 0:01:27]}  Nc6 {[%clk 0:02:15]} 20. Bb2 {[%clk 0:01:08]}  Nxd4 {[%clk 0:02:00]} 21. Bxd4 {[%clk 0:01:06]}  Bc6 {[%clk 0:01:50]} 22. Rfc1 {[%clk 0:01:04]}  e5 {[%clk 0:01:44]} 23. Bc3 {[%clk 0:00:49]}  h5 {[%clk 0:01:41]} 24. Ba5 {[%clk 0:00:47]}  Qe7 {[%clk 0:01:30]} 25. Nc4 {[%clk 0:00:31]}  Rdc8 {[%clk 0:01:18]} 26. Bb4 {[%clk 0:00:31]}  Qe6 {[%clk 0:01:18]} 27. Bd6 {[%clk 0:00:28]}  Bxg2 {[%clk 0:01:16]} 28. Kxg2 {[%clk 0:00:26]}  Ra8 {[%clk 0:01:07]} 29. Qb4 {[%clk 0:00:13]}  b5 {[%clk 0:01:01]} 30. Nb6 {[%clk 0:00:10]}  Nd5 {[%clk 0:00:58]} 31. Nxd5 {[%clk 0:00:08]}  Qxd5+ {[%clk 0:00:58]} 32. e4 {[%clk 0:00:07]}  Qe6 {[%clk 0:00:56]} 33. Bc5 {[%clk 0:00:07]}  Bh6 {[%clk 0:00:54]} 34. Rc2 {[%clk 0:00:06]}  Rc6 {[%clk 0:00:53]} 35. Be3 {[%clk 0:00:04]}  Bxe3 {[%clk 0:00:51]} 36. Rxc6 {[%clk 0:00:03]}  Qxc6 {[%clk 0:00:49]} 37. fxe3 {[%clk 0:00:04]}  Qc2+ {[%clk 0:00:48]} 38. Kf3 {[%clk 0:00:04]}  Rd8 {[%clk 0:00:45]} 39. Rb2 {[%clk 0:00:04]}  Qc1 {[%clk 0:00:44]} 40. Kf2 {[%clk 0:00:01]}  Rd1 {[%clk 0:00:42]} 41. Qb3 {[%clk 0:00:01]}  Rf1+ {[%clk 0:00:41]} 42. Kg2 {[%clk 0:00:01]}  Rg1+ {[%clk 0:00:41]} 43. Kh2 {[%clk 0:00:01]}  Rh1+ {[%clk 0:00:40]} 44. Kg2 {[%clk 0:00:02]}  Qf1# {[%clk 0:00:40]} 0-1


[Site "https://www.chess.com"]

[Event "Titled Tuesday Blitz April 12 Early 2022"]
[White "Samant Aditya S"]
[Black "Lach, Aleksandra"]
[WhiteFideId "35080580"]
[BlackFideId "1134299"]
[WhiteElo "1916"]
[BlackElo "2172"]
[Result "1-0"]
[Round "11"]
[TimeControl "180+1"]
[Date "2022.04.13"]
[WhiteClock "0:00:13"]
[BlackClock "0:00:03"]

1. d4 {[%clk 0:03:00]}  f5 {[%clk 0:02:59]} 2. Nc3 {[%clk 0:02:59]}  Nf6 {[%clk 0:02:59]} 3. Bg5 {[%clk 0:03:00]}  d5 {[%clk 0:03:00]} 4. Bxf6 {[%clk 0:03:00]}  exf6 {[%clk 0:03:01]} 5. e3 {[%clk 0:03:00]}  Be6 {[%clk 0:03:00]} 6. Bd3 {[%clk 0:03:00]}  Qd7 {[%clk 0:02:59]} 7. h4 {[%clk 0:02:59]}  Nc6 {[%clk 0:02:56]} 8. a3 {[%clk 0:02:58]}  g6 {[%clk 0:02:49]} 9. Nh3 {[%clk 0:02:55]}  Bh6 {[%clk 0:02:42]} 10. Qf3 {[%clk 0:02:53]}  O-O-O {[%clk 0:02:41]} 11. Nf4 {[%clk 0:02:53]}  Bxf4 {[%clk 0:02:40]} 12. Qxf4 {[%clk 0:02:53]}  h6 {[%clk 0:02:39]} 13. O-O-O {[%clk 0:02:51]}  g5 {[%clk 0:02:31]} 14. Qg3 {[%clk 0:02:43]}  Ne7 {[%clk 0:02:27]} 15. Ne2 {[%clk 0:02:34]}  Kb8 {[%clk 0:02:09]} 16. Kb1 {[%clk 0:02:33]}  Ka8 {[%clk 0:02:08]} 17. Qf3 {[%clk 0:02:24]}  Ng6 {[%clk 0:02:00]} 18. g3 {[%clk 0:02:05]}  Rc8 {[%clk 0:01:43]} 19. Rh2 {[%clk 0:02:01]}  g4 {[%clk 0:00:59]} 20. Qh1 {[%clk 0:01:55]}  h5 {[%clk 0:01:00]} 21. Qe1 {[%clk 0:01:51]}  c5 {[%clk 0:00:59]} 22. dxc5 {[%clk 0:01:48]}  Rxc5 {[%clk 0:00:50]} 23. Qb4 {[%clk 0:01:40]}  Rhc8 {[%clk 0:00:49]} 24. Nd4 {[%clk 0:01:35]}  Ne5 {[%clk 0:00:49]} 25. Rhh1 {[%clk 0:01:32]}  b6 {[%clk 0:00:30]} 26. Rhe1 {[%clk 0:01:29]}  Nc6 {[%clk 0:00:29]} 27. Qd2 {[%clk 0:01:23]}  Ne5 {[%clk 0:00:27]} 28. Qb4 {[%clk 0:01:16]}  Nc6 {[%clk 0:00:27]} 29. Nxc6 {[%clk 0:01:17]}  Qxc6 {[%clk 0:00:26]} 30. Rd2 {[%clk 0:01:16]}  a5 {[%clk 0:00:19]} 31. Qd4 {[%clk 0:01:15]}  Bd7 {[%clk 0:00:18]} 32. Rc1 {[%clk 0:01:08]}  Kb7 {[%clk 0:00:18]} 33. Bf1 {[%clk 0:01:08]}  b5 {[%clk 0:00:12]} 34. Bg2 {[%clk 0:01:07]}  Be6 {[%clk 0:00:13]} 35. Qxf6 {[%clk 0:01:06]}  b4 {[%clk 0:00:13]} 36. Qd4 {[%clk 0:00:30]}  b3 {[%clk 0:00:11]} 37. c3 {[%clk 0:00:28]}  a4 {[%clk 0:00:07]} 38. Rcd1 {[%clk 0:00:27]}  Rd8 {[%clk 0:00:07]} 39. Qe5 {[%clk 0:00:26]}  Rd7 {[%clk 0:00:07]} 40. Qf6 {[%clk 0:00:20]}  Qd6 {[%clk 0:00:07]} 41. Qd4 {[%clk 0:00:19]}  Kc6 {[%clk 0:00:06]} 42. Qxa4+ {[%clk 0:00:19]}  Kb7 {[%clk 0:00:04]} 43. Qxb3+ {[%clk 0:00:19]}  Kc7 {[%clk 0:00:05]} 44. Qb4 {[%clk 0:00:18]}  Qc6 {[%clk 0:00:05]} 45. Qd4 {[%clk 0:00:16]}  Rb5 {[%clk 0:00:05]} 46. Qe5+ {[%clk 0:00:16]}  Kb7 {[%clk 0:00:06]} 47. c4 {[%clk 0:00:14]}  Rc5 {[%clk 0:00:03]} 48. cxd5 {[%clk 0:00:13]} 1-0


[Site "https://www.chess.com"]

[Event "Titled Tuesday Blitz April 12 Early 2022"]
[White "Silvestre, Christian"]
[Black "Manukian, Artak"]
[WhiteFideId "30956269"]
[BlackFideId "13301373"]
[WhiteElo "2441"]
[BlackElo "2349"]
[Result "0-1"]
[Round "11"]
[TimeControl "180+1"]
[Date "2022.04.13"]
[WhiteClock "0:00:10"]
[BlackClock "0:01:09"]

1. e4 {[%clk 0:03:00]}  c6 {[%clk 0:02:59]} 2. Nc3 {[%clk 0:02:59]}  d5 {[%clk 0:03:00]} 3. Nf3 {[%clk 0:02:59]}  dxe4 {[%clk 0:03:00]} 4. Nxe4 {[%clk 0:02:59]}  Nf6 {[%clk 0:03:01]} 5. Nxf6+ {[%clk 0:02:58]}  exf6 {[%clk 0:03:02]} 6. d4 {[%clk 0:02:58]}  Bd6 {[%clk 0:03:02]} 7. Bd3 {[%clk 0:02:58]}  O-O {[%clk 0:02:58]} 8. O-O {[%clk 0:02:58]}  Bg4 {[%clk 0:02:59]} 9. h3 {[%clk 0:02:58]}  Bh5 {[%clk 0:02:59]} 10. g4 {[%clk 0:02:57]}  Bg6 {[%clk 0:02:59]} 11. Bxg6 {[%clk 0:02:56]}  hxg6 {[%clk 0:02:59]} 12. Re1 {[%clk 0:02:47]}  Nd7 {[%clk 0:02:59]} 13. Qe2 {[%clk 0:02:43]}  g5 {[%clk 0:02:52]} 14. Bd2 {[%clk 0:02:37]}  Qc7 {[%clk 0:02:41]} 15. c4 {[%clk 0:02:27]}  g6 {[%clk 0:02:39]} 16. Kg2 {[%clk 0:02:09]}  Kg7 {[%clk 0:02:35]} 17. c5 {[%clk 0:01:47]}  Bf4 {[%clk 0:02:34]} 18. Bxf4 {[%clk 0:01:43]}  Qxf4 {[%clk 0:02:29]} 19. Qe4 {[%clk 0:01:27]}  Qxe4 {[%clk 0:02:10]} 20. Rxe4 {[%clk 0:01:28]}  Rfe8 {[%clk 0:02:11]} 21. Rae1 {[%clk 0:01:25]}  Kf8 {[%clk 0:02:10]} 22. Nd2 {[%clk 0:01:16]}  b6 {[%clk 0:02:08]} 23. b4 {[%clk 0:01:14]}  a5 {[%clk 0:02:07]} 24. Rxe8+ {[%clk 0:01:04]}  Rxe8 {[%clk 0:02:06]} 25. Rxe8+ {[%clk 0:01:05]}  Kxe8 {[%clk 0:02:07]} 26. a3 {[%clk 0:01:04]}  axb4 {[%clk 0:02:07]} 27. axb4 {[%clk 0:01:05]}  bxc5 {[%clk 0:02:05]} 28. bxc5 {[%clk 0:00:55]}  Ke7 {[%clk 0:01:59]} 29. Nc4 {[%clk 0:00:52]}  Ke6 {[%clk 0:01:58]} 30. Ne3 {[%clk 0:00:44]}  f5 {[%clk 0:01:57]} 31. Kf3 {[%clk 0:00:39]}  f4 {[%clk 0:01:47]} 32. Nc4 {[%clk 0:00:36]}  f6 {[%clk 0:01:40]} 33. Ke4 {[%clk 0:00:26]}  Nb8 {[%clk 0:01:35]} 34. Nb6 {[%clk 0:00:20]}  Na6 {[%clk 0:01:34]} 35. d5+ {[%clk 0:00:19]}  cxd5+ {[%clk 0:01:34]} 36. Kd4 {[%clk 0:00:17]}  Nb4 {[%clk 0:01:34]} 37. c6 {[%clk 0:00:11]}  Nxc6+ {[%clk 0:01:34]} 38. Kc5 {[%clk 0:00:12]}  Ne7 {[%clk 0:01:34]} 39. Na4 {[%clk 0:00:11]}  Ke5 {[%clk 0:01:31]} 40. Nb2 {[%clk 0:00:11]}  Ke4 {[%clk 0:01:30]} 41. Kd6 {[%clk 0:00:12]}  Nc8+ {[%clk 0:01:30]} 42. Ke6 {[%clk 0:00:12]}  f5 {[%clk 0:01:30]} 43. Kf6 {[%clk 0:00:11]}  fxg4 {[%clk 0:01:27]} 44. hxg4 {[%clk 0:00:12]}  d4 {[%clk 0:01:20]} 45. Kxg5 {[%clk 0:00:13]}  Ne7 {[%clk 0:01:19]} 46. Kf6 {[%clk 0:00:12]}  Nd5+ {[%clk 0:01:19]} 47. Kxg6 {[%clk 0:00:12]}  Kf3 {[%clk 0:01:15]} 48. Kg5 {[%clk 0:00:12]}  Kxf2 {[%clk 0:01:15]} 49. Kf5 {[%clk 0:00:11]}  Ke3 {[%clk 0:01:14]} 50. Nc4+ {[%clk 0:00:11]}  Ke2 {[%clk 0:01:10]} 51. Ne5 {[%clk 0:00:11]}  f3 {[%clk 0:01:08]} 52. Nxf3 {[%clk 0:00:07]}  Kxf3 {[%clk 0:01:09]} 53. g5 {[%clk 0:00:07]}  d3 {[%clk 0:01:07]} 54. g6 {[%clk 0:00:08]}  Ne7+ {[%clk 0:01:06]} 55. Kf6 {[%clk 0:00:07]}  Nxg6 {[%clk 0:01:07]} 56. Kxg6 {[%clk 0:00:07]}  d2 {[%clk 0:01:07]} 57. Kg5 {[%clk 0:00:07]}  d1=Q {[%clk 0:01:08]} 58. Kh6 {[%clk 0:00:07]}  Qg1 {[%clk 0:01:07]} 59. Kh7 {[%clk 0:00:07]}  Kf4 {[%clk 0:01:08]} 60. Kh8 {[%clk 0:00:08]}  Kf5 {[%clk 0:01:08]} 61. Kh7 {[%clk 0:00:09]}  Kf6 {[%clk 0:01:09]} 62. Kh8 {[%clk 0:00:10]}  Qg7# {[%clk 0:01:09]} 0-1


[Site "https://www.chess.com"]

[Event "Titled Tuesday Blitz April 12 Early 2022"]
[White "Simonovic, Miroslav"]
[Black "Czerw, Dawid"]
[WhiteFideId "919152"]
[BlackFideId "1145746"]
[WhiteElo "2043"]
[BlackElo "2125"]
[Result "0-1"]
[Round "11"]
[TimeControl "180+1"]
[Date "2022.04.13"]
[WhiteClock "0:00:03"]
[BlackClock "0:00:30"]

1. d4 {[%clk 0:03:00]}  Nf6 {[%clk 0:02:59]} 2. Bg5 {[%clk 0:03:00]}  e6 {[%clk 0:02:57]} 3. e4 {[%clk 0:02:59]}  h6 {[%clk 0:02:58]} 4. Bxf6 {[%clk 0:02:59]}  Qxf6 {[%clk 0:02:59]} 5. Nf3 {[%clk 0:02:59]}  c5 {[%clk 0:02:59]} 6. c3 {[%clk 0:02:59]}  cxd4 {[%clk 0:02:59]} 7. Qxd4 {[%clk 0:02:57]}  Qd8 {[%clk 0:02:56]} 8. e5 {[%clk 0:02:53]}  Nc6 {[%clk 0:02:56]} 9. Qd2 {[%clk 0:02:53]}  Qc7 {[%clk 0:02:54]} 10. Qe3 {[%clk 0:02:47]}  g5 {[%clk 0:02:53]} 11. h3 {[%clk 0:02:46]}  Bg7 {[%clk 0:02:53]} 12. Nbd2 {[%clk 0:02:35]}  Nxe5 {[%clk 0:02:51]} 13. O-O-O {[%clk 0:02:32]}  d5 {[%clk 0:02:47]} 14. Nxe5 {[%clk 0:02:21]}  Bxe5 {[%clk 0:02:43]} 15. Bb5+ {[%clk 0:02:22]}  Kf8 {[%clk 0:02:42]} 16. Rde1 {[%clk 0:02:05]}  Bg7 {[%clk 0:02:38]} 17. Rhf1 {[%clk 0:01:47]}  d4 {[%clk 0:02:37]} 18. Qd3 {[%clk 0:01:41]}  dxc3 {[%clk 0:02:36]} 19. bxc3 {[%clk 0:01:36]}  a6 {[%clk 0:02:32]} 20. Bc4 {[%clk 0:01:28]}  b5 {[%clk 0:02:25]} 21. Bb3 {[%clk 0:01:21]}  Bxc3 {[%clk 0:02:24]} 22. Kb1 {[%clk 0:01:17]}  Bg7 {[%clk 0:02:19]} 23. f4 {[%clk 0:01:17]}  gxf4 {[%clk 0:02:18]} 24. g3 {[%clk 0:01:08]}  Bb7 {[%clk 0:02:17]} 25. Rxf4 {[%clk 0:01:02]}  Rd8 {[%clk 0:02:16]} 26. Qc2 {[%clk 0:00:49]}  Qxc2+ {[%clk 0:02:09]} 27. Kxc2 {[%clk 0:00:50]}  Ke7 {[%clk 0:02:08]} 28. Ref1 {[%clk 0:00:32]}  Rhf8 {[%clk 0:01:55]} 29. Ne4 {[%clk 0:00:27]}  Bxe4+ {[%clk 0:01:50]} 30. Rxe4 {[%clk 0:00:28]}  Rd6 {[%clk 0:01:44]} 31. a4 {[%clk 0:00:23]}  Rc8+ {[%clk 0:01:42]} 32. Kb1 {[%clk 0:00:20]}  Rd3 {[%clk 0:01:40]} 33. Bc2 {[%clk 0:00:15]}  Rxg3 {[%clk 0:01:36]} 34. axb5 {[%clk 0:00:13]}  axb5 {[%clk 0:01:35]} 35. Ref4 {[%clk 0:00:06]}  f5 {[%clk 0:01:33]} 36. h4 {[%clk 0:00:06]}  Rg2 {[%clk 0:01:31]} 37. R1f2 {[%clk 0:00:06]}  Rxf2 {[%clk 0:01:30]} 38. Rxf2 {[%clk 0:00:07]}  Ra8 {[%clk 0:01:30]} 39. Kc1 {[%clk 0:00:05]}  Bf6 {[%clk 0:01:27]} 40. h5 {[%clk 0:00:04]}  b4 {[%clk 0:01:23]} 41. Re2 {[%clk 0:00:04]}  Kd6 {[%clk 0:01:19]} 42. Bb3 {[%clk 0:00:04]}  e5 {[%clk 0:01:19]} 43. Rd2+ {[%clk 0:00:02]}  Ke7 {[%clk 0:01:18]} 44. Rg2 {[%clk 0:00:02]}  Bg5+ {[%clk 0:01:18]} 45. Kb2 {[%clk 0:00:03]}  e4 {[%clk 0:01:16]} 46. Rc2 {[%clk 0:00:01]}  f4 {[%clk 0:01:14]} 47. Rc6 {[%clk 0:00:01]}  Kd7 {[%clk 0:01:09]} 48. Re6 {[%clk 0:00:01]}  Re8 {[%clk 0:01:06]} 49. Rxe8 {[%clk 0:00:01]}  Kxe8 {[%clk 0:01:06]} 50. Kc2 {[%clk 0:00:02]}  Ke7 {[%clk 0:01:03]} 51. Bd5 {[%clk 0:00:03]}  f3 {[%clk 0:00:47]} 52. Bxe4 {[%clk 0:00:02]}  f2 {[%clk 0:00:48]} 53. Bd3 {[%clk 0:00:02]}  Kf6 {[%clk 0:00:45]} 54. Bf1 {[%clk 0:00:02]}  Ke5 {[%clk 0:00:44]} 55. Kd3 {[%clk 0:00:02]}  Be7 {[%clk 0:00:37]} 56. Bg2 {[%clk 0:00:02]}  Bc5 {[%clk 0:00:34]} 57. Kc4 {[%clk 0:00:02]}  Kf4 {[%clk 0:00:30]} 58. Kxc5 {[%clk 0:00:02]}  b3 {[%clk 0:00:30]} 59. Kd4 {[%clk 0:00:01]}  b2 {[%clk 0:00:30]} 60. Be4 {[%clk 0:00:01]}  f1=Q {[%clk 0:00:30]} 61. Bd3 {[%clk 0:00:02]}  Qxd3+ {[%clk 0:00:29]} 62. Kxd3 {[%clk 0:00:03]}  b1=Q+ {[%clk 0:00:30]} 63. Kd4 {[%clk 0:00:03]}  Qd1+ {[%clk 0:00:30]} 0-1


[Site "https://www.chess.com"]

[Event "Titled Tuesday Blitz April 12 Early 2022"]
[White "Stelmaszyk, Nico"]
[Black "Li, Hui"]
[WhiteFideId "16200462"]
[BlackFideId "15400310"]
[WhiteElo "2119"]
[BlackElo "1954"]
[Result "1-0"]
[Round "11"]
[TimeControl "180+1"]
[Date "2022.04.13"]
[WhiteClock "0:01:29"]
[BlackClock "0:00:02"]

1. e4 {[%clk 0:03:00]}  e5 {[%clk 0:02:59]} 2. Bc4 {[%clk 0:03:00]}  Nf6 {[%clk 0:02:58]} 3. d4 {[%clk 0:03:00]}  exd4 {[%clk 0:02:56]} 4. Nf3 {[%clk 0:03:00]}  Nc6 {[%clk 0:02:55]} 5. O-O {[%clk 0:03:00]}  Nxe4 {[%clk 0:02:50]} 6. Re1 {[%clk 0:03:00]}  d5 {[%clk 0:02:50]} 7. Nc3 {[%clk 0:03:01]}  dxc4 {[%clk 0:02:22]} 8. Rxe4+ {[%clk 0:03:00]}  Be6 {[%clk 0:02:13]} 9. Nxd4 {[%clk 0:03:01]}  Nxd4 {[%clk 0:02:05]} 10. Rxd4 {[%clk 0:03:01]}  Bd6 {[%clk 0:01:38]} 11. Bf4 {[%clk 0:02:54]}  O-O {[%clk 0:01:35]} 12. Bxd6 {[%clk 0:02:53]}  cxd6 {[%clk 0:01:36]} 13. Rxd6 {[%clk 0:02:54]}  Qe7 {[%clk 0:01:14]} 14. Qd4 {[%clk 0:02:53]}  Rfd8 {[%clk 0:01:04]} 15. Rd1 {[%clk 0:02:53]}  Rxd6 {[%clk 0:01:03]} 16. Qxd6 {[%clk 0:02:53]}  Qxd6 {[%clk 0:00:55]} 17. Rxd6 {[%clk 0:02:54]}  Kf8 {[%clk 0:00:56]} 18. Ne2 {[%clk 0:02:51]}  Ke7 {[%clk 0:00:50]} 19. Rd2 {[%clk 0:02:50]}  Rd8 {[%clk 0:00:45]} 20. Rxd8 {[%clk 0:02:50]}  Kxd8 {[%clk 0:00:45]} 21. c3 {[%clk 0:02:50]}  Kc7 {[%clk 0:00:30]} 22. Nd4 {[%clk 0:02:50]}  Kd6 {[%clk 0:00:30]} 23. f3 {[%clk 0:02:50]}  a6 {[%clk 0:00:30]} 24. Kf2 {[%clk 0:02:50]}  Bd7 {[%clk 0:00:26]} 25. Ke3 {[%clk 0:02:51]}  b5 {[%clk 0:00:23]} 26. a3 {[%clk 0:02:50]}  Ke5 {[%clk 0:00:23]} 27. f4+ {[%clk 0:02:50]}  Kd5 {[%clk 0:00:23]} 28. g3 {[%clk 0:02:51]}  Bc8 {[%clk 0:00:23]} 29. Nf3 {[%clk 0:02:51]}  f6 {[%clk 0:00:23]} 30. Nd4 {[%clk 0:02:50]}  Bd7 {[%clk 0:00:23]} 31. Nc2 {[%clk 0:02:48]}  a5 {[%clk 0:00:20]} 32. Nd4 {[%clk 0:02:48]}  Be8 {[%clk 0:00:15]} 33. Nf3 {[%clk 0:02:46]}  Bd7 {[%clk 0:00:14]} 34. Nd4 {[%clk 0:02:46]}  Be8 {[%clk 0:00:14]} 35. Nf5 {[%clk 0:02:47]}  g6 {[%clk 0:00:13]} 36. Nd4 {[%clk 0:02:47]}  Bd7 {[%clk 0:00:13]} 37. Nf3 {[%clk 0:02:40]}  Be8 {[%clk 0:00:13]} 38. Ng1 {[%clk 0:02:38]}  Bd7 {[%clk 0:00:12]} 39. Ne2 {[%clk 0:02:38]}  Bf5 {[%clk 0:00:12]} 40. Nd4 {[%clk 0:02:36]}  Bd7 {[%clk 0:00:12]} 41. Kf3 {[%clk 0:02:35]}  Be8 {[%clk 0:00:11]} 42. g4 {[%clk 0:02:34]}  Bd7 {[%clk 0:00:11]} 43. h3 {[%clk 0:02:34]}  b4 {[%clk 0:00:09]} 44. Ke3 {[%clk 0:02:30]}  bxa3 {[%clk 0:00:08]} 45. bxa3 {[%clk 0:02:31]}  Be8 {[%clk 0:00:08]} 46. h4 {[%clk 0:02:28]}  h6 {[%clk 0:00:06]} 47. Kf3 {[%clk 0:02:26]}  Bd7 {[%clk 0:00:05]} 48. Nc2 {[%clk 0:02:23]}  Be8 {[%clk 0:00:05]} 49. Nd4 {[%clk 0:02:18]}  Bd7 {[%clk 0:00:05]} 50. g5 {[%clk 0:02:15]}  fxg5 {[%clk 0:00:04]} 51. fxg5 {[%clk 0:02:14]}  hxg5 {[%clk 0:00:05]} 52. hxg5 {[%clk 0:02:15]}  Bc8 {[%clk 0:00:05]} 53. Kf4 {[%clk 0:02:15]}  Bd7 {[%clk 0:00:05]} 54. Nf3 {[%clk 0:02:15]}  Kc5 {[%clk 0:00:04]} 55. Ne5 {[%clk 0:02:15]}  Be8 {[%clk 0:00:04]} 56. Ke4 {[%clk 0:02:15]}  Kb5 {[%clk 0:00:04]} 57. Kd4 {[%clk 0:02:16]}  Ka4 {[%clk 0:00:03]} 58. Nxc4 {[%clk 0:02:16]}  Bf7 {[%clk 0:00:02]} 59. Nd6 {[%clk 0:01:29]}  Be8 {[%clk 0:00:02]} 60. Nxe8 {[%clk 0:01:29]} 1-0


[Site "https://www.chess.com"]